[Event "2nd Bassano Easter 2022"]
[Site "Bassano del Grappa"]
[Date "2022.04.17"]
[Round "7.8"]
[White "Petkidis, Anthony"]
[Black "Peycheva, Gergana"]
[Result "1-0"]
[ECO "A14"]
[WhiteElo "2420"]
[BlackElo "2342"]
[Annotator "TA"]
[PlyCount "67"]
[EventDate "2022.04.14"]
[EventType "swiss"]
[EventCountry "ITA"]
[SourceTitle "playchess.com"]
[Source "ChessBase"]
[SourceQuality "1"]
[TimeControl "30/3600+30:1800+30"]

{[%evp 25,67,37,82,88,98,110,113,114,108,108,107,111,102,95,104,112,104,108,111,100,195,192,195,168,237,163,202,166,187,162,187,83,96,0,163,166,164,171,165,168,152,146,175,157]} 1. c4 {[%emt 0:00:27]} e6 {[%emt 0:00:54]} 2. Nf3 {[%emt 0:00:32]} d5 {[%emt 0:00:46]} 3. g3 {[%emt 0:00:15]} Nf6 {[%emt 0:01:08]} 4. Bg2 {[%emt 0:00:08]} Be7 {[%emt 0:02:32]} 5. O-O {[%emt 0:00:14]} O-O {[%emt 0:00:17]} 6. b3 {[%emt 0:00:53]} b6 {[%emt 0:04:15]} 7. Bb2 {[%emt 0:01:11]} Bb7 {[%emt 0:00:52]} 8. e3 {[%emt 0:00:51]} c5 {[%emt 0:01:56]} 9. Nc3 {[%emt 0:02:16]} Nbd7 {[%emt 0:03:23]} 10. Qe2 {[%emt 0:03:15]} Rc8 {[%emt 0:03:42]} 11. Rac1 {[%emt 0:02:35]} Qc7 {[%emt 0:03:22]} 12. cxd5 {[%emt 0:20:00]} exd5 {[%emt 0:04:24]} 13. d4 {[%emt 0:02:40]} Qb8 {[%emt 0:07:05]} 14. Ne5 {[%emt 0:07:40][%cal Oc3d5] [#] A14: English Opening: 1...e6 with b3 by White.} Rcd8 $146 {[%emt 0:08:12]} ({Predecessor:} 14... Rfd8 15. Nxd7 Nxd7 16. Nxd5 Bf8 17. Rfd1 Qa8 18. e4 cxd4 19. Rxc8 Qxc8 20. Bxd4 Nc5 21. Qh5 Ne6 {1-0 (40) Strebkovs,A (2275)-Schatz,C (2193) Pardubice 2019}) 15. Nxd7 {[%emt 0:03:42] &Bianco is much more active.} Rxd7 {[%emt 0:00:57]} 16. dxc5 $1 {[%emt 0:02:37] White is better.} bxc5 {[%emt 0:05:00]} 17. Na4 {[%emt 0:04:40]} d4 {[%emt 0:07:18]} 18. Nxc5 {[%emt 0:02:14]} Bxc5 {[%emt 0:01:46]} 19. Rxc5 {[%emt 0:00:09]} d3 {[%emt 0:00:08]} 20. Qd1 {[%emt 0:00:58]} Bxg2 {[%emt 0:02:15]} 21. Kxg2 {[%emt 0:03:57] Strongly threatening Bxf6.} Qb7+ {[%emt 0:00:54]} 22. f3 {[%emt 0:01:24]} Ng4 {[%emt 0:06:06] [#]} (22... Nd5 $16 23. Bd4 Re8) 23. Qd2 $1 $18 {[%emt 0:02:12]} Re8 {[%emt 0:01:17]} 24. e4 {[%emt 0:02:11] And now Qg5 would win.} Nf6 {[%emt 0:01:41]} (24... f6 {is a better defense.} 25. Rd1 (25. fxg4 $2 Rxe4 26. Kh3 Re2 $19) 25... Qb6) 25. Re1 {[%emt 0:01:26]} Qb6 {[%emt 0:00:42]} 26. b4 {[%emt 0:00:15]} h6 {[%emt 0:00:56]} 27. a3 {[%emt 0:00:12]} Qe6 {[%emt 0:00:17]} 28. Re5 {[%emt 0:01:56]} (28. Qc3 $18 {and White stays clearly on top.}) 28... Qb3 {[%emt 0:01:29]} 29. Rc5 {[%emt 0:00:43]} (29. Rb5 $16) 29... Nd5 {[%emt 0:00:41]} 30. Kf2 {[%emt 0:00:00] White is clearly better.} Nb6 {[%emt 0:00:00] [#] White must now prevent ...Na4.} 31. Rc3 $1 $36 {[%emt 0:10:54][%mdl 2048] White is on the roll.} Qa2 {[%emt 0:10:43] ...Na4 is the strong threat.} (31... Nc4 $2 32. Rxb3 Nxd2 33. Rc3 $18) 32. Ra1 {[%emt 0:07:14]} Qe6 {[%emt 0:06:36] aiming for ...Na4.} (32... Nc4 $2 33. Rxa2 Nxd2 34. Ra1 $18) 33. Rxd3 {[%emt 0:01:09]} Nc4 {[%emt 0:03:47]} 34. Qc3 {[%emt 0:00:11] Weighted Error Value: White=0.16 (very precise) /Black=0.31} ({Much less strong is} 34. Rxd7 $6 Nxd2 35. Rxd2 Qb6+ 36. Bd4 Qa6 $14) 1-0

[Event "2nd Bassano Easter 2022"]
[Site "Bassano del Grappa"]
[Date "2022.04.17"]
[Round "7.9"]
[White "Olde, Margareth"]
[Black "Hess, Max"]
[Result "1-0"]
[ECO "E10"]
[WhiteElo "2258"]
[BlackElo "2395"]
[Annotator "TA"]
[PlyCount "77"]
[EventDate "2022.04.14"]
[EventType "swiss"]
[EventCountry "ITA"]
[SourceTitle "playchess.com"]
[Source "ChessBase"]
[SourceQuality "1"]
[TimeControl "30/3600+30:1800+30"]

{[%evp 9,76,-7,0,-5,0,-18,0,0,0,0,0,-4,0,-13,0,-18,-16,-18,-19,-34,-28,-33,-22,-41,0,0,0,0,0,0,0,0,2,5,10,0,0,0,231,234,327,302,291,266,382,356,502,491,601,586,571,592,609,601,589,533,788,767,1003,956,29989,29985,29993,29994,29997,29998,29998,29999,29999]} 1. d4 {[%emt 0:00:02]} Nf6 {[%emt 0:02:46]} 2. c4 {[%emt 0:00:05]} e6 {[%emt 0:00:14]} 3. Nf3 {[%emt 0:00:33]} a6 {[%emt 0:00:26]} 4. g3 {[%emt 0:00:23]} b5 {[%emt 0:00:18]} 5. Bg2 {[%emt 0:02:20]} Bb7 {[%emt 0:00:22]} 6. b3 {[%emt 0:00:37] E10: Blumenfeld Gambit.} c5 {[%emt 0:00:16]} 7. O-O {[%emt 0:05:13][%cal Od4d5]} bxc4 {[%emt 0:00:35]} 8. bxc4 {[%emt 0:00:20][%cal Od4d5] The position is equal.} cxd4 {[%emt 0:00:17]} 9. Qxd4 {[%emt 0:02:53]} Nc6 {[%emt 0:00:45]} 10. Qf4 {[%emt 0:03:07] [#]} Rc8 $146 {[%emt 0:05:10]} ({Predecessor:} 10... Be7 11. Rd1 O-O 12. Nc3 Rc8 13. Ne5 Qa5 14. Nxc6 Bxc6 15. Bd2 Bb4 16. Rac1 Bxg2 17. Kxg2 {1-0 (26) Markov,M (2365)-Spyropoulos,N (2425) Chess.com INT 2020}) 11. Nbd2 {[%emt 0:05:02]} Be7 {[%emt 0:01:14]} 12. e4 {[%emt 0:05:06]} d6 {[%emt 0:01:46]} 13. Rb1 {[%emt 0:04:37]} Ba8 {[%emt 0:01:44]} 14. Rd1 {[%emt 0:02:25]} Qc7 {[%emt 0:02:40]} 15. Ba3 {[%emt 0:08:10]} O-O {[%emt 0:11:54]} 16. Rbc1 {[%emt 0:04:24]} Ne5 {[%emt 0:01:23]} 17. Nxe5 {[%emt 0:02:55]} dxe5 {[%emt 0:00:38]} 18. Qe3 {[%emt 0:00:08]} Bxa3 {[%emt 0:06:32]} 19. Qxa3 {[%emt 0:00:43]} Rfd8 {[%emt 0:06:30]} 20. c5 {[%emt 0:02:41]} h5 {[%emt 0:09:30]} 21. f3 {[%emt 0:01:14]} Bc6 {[%emt 0:01:39]} 22. Qxa6 {[%emt 0:02:23]} Ra8 {[%emt 0:03:20]} 23. Qb6 {[%emt 0:00:27]} Qd7 {[%emt 0:02:04] [#] Black is now going downhill.} (23... Qxb6 $11 {and Black has nothing to worry.} 24. cxb6 Ba4) 24. Nc4 $1 $18 {[%emt 0:07:22][%csl LRd7,LRe5]} ({Resist} 24. Nf1 $6 Qe8 $16) 24... Qxd1+ {[%emt 0:00:06]} 25. Rxd1 {[%emt 0:00:02]} Rxd1+ {[%emt 0:00:08]} 26. Bf1 {[%emt 0:00:02]} Be8 {[%emt 0:05:16]} (26... Bd7 $142 27. c6 Bc8) 27. c6 {[%emt 0:00:32] aiming for c7.} Bxc6 {[%emt 0:04:20]} (27... Rc1 {keeps fighting.} 28. Qb2 Rxf1+ 29. Kxf1 Bxc6 30. Nxe5 Be8) 28. Qxc6 {[%emt 0:00:05]} Rxa2 {[%emt 0:00:03]} 29. Qc8+ {[%emt 0:07:17]} Kh7 {[%emt 0:00:07]} 30. Nxe5 {[%emt 0:00:00]} Raa1 {[%emt 0:00:00] [#]} 31. Nxf7 $1 {[%emt 0:04:11] White wants to mate with Qh8+.} Rxf1+ {[%emt 0:02:35]} (31... Nxe4 32. Qh8+) 32. Kg2 {[%emt 0:00:03] Intending Qh8+ and mate.} Rg1+ {[%emt 0:01:46]} 33. Kh3 {[%emt 0:00:34] Qh8+ would kill now.} Ra5 {[%emt 0:02:29]} 34. e5 {[%emt 0:05:36]} Ng8 {[%emt 0:05:48]} 35. Qxe6 {[%emt 0:01:15] White mates.} g6 {[%emt 0:01:39]} 36. Ng5+ {[%emt 0:00:48]} Kg7 {[%emt 0:00:38]} 37. Qf7+ {[%emt 0:00:06]} Kh6 {[%emt 0:00:03]} 38. Qf8+ {[%emt 0:00:12]} Kxg5 {[%emt 0:00:04]} 39. f4# {[%emt 0:00:05] Weighted Error Value: White=0.04 (flawless) /Black=0.55} 1-0

[Event "2nd Bassano Easter 2022"]
[Site "Bassano del Grappa"]
[Date "2022.04.17"]
[Round "7.10"]
[White "Huber, Benedikt"]
[Black "Baum, Jonasz"]
[Result "0-1"]
[ECO "E04"]
[WhiteElo "2191"]
[BlackElo "2287"]
[Annotator "TA"]
[PlyCount "64"]
[EventDate "2022.04.14"]
[EventType "swiss"]
[EventCountry "ITA"]
[SourceTitle "playchess.com"]
[Source "ChessBase"]
[SourceQuality "1"]
[TimeControl "30/3600+30:1800+30"]

{[%evp 10,64,0,0,-6,-18,-7,-27,0,0,0,-24,-14,-64,-33,-72,0,0,0,0,-7,0,0,-108,-113,-110,-107,-113,-110,-259,-187,-183,-207,-247,-179,-318,-292,-292,-188,-302,-300,-625,-629,-612,-602,-692,-695,-1060,-1040,-887,-670,-29966,-29967,-29964,-29965,-29986,-29987]} 1. d4 {[%emt 0:00:04]} d5 {[%emt 0:00:25][%cal Bd7d5,Bd5c4,Bc4c3][%mdl 32]} 2. c4 {[%emt 0:00:34]} e6 {[%emt 0:00:21]} 3. Nf3 {[%emt 0:00:16]} Nf6 {[%emt 0:00:10]} 4. g3 {[%emt 0:00:11]} Bb4+ {[%emt 0:00:22]} 5. Nbd2 {[%emt 0:00:25]} dxc4 {[%emt 0:00:59]} 6. Bg2 {[%emt 0:00:52]} b5 {[%emt 0:00:36] Inhibits Qa4. E04: Open Catalan: 5 Nf3.} 7. O-O {[%emt 0:09:38][%cal Od2c4]} O-O {[%emt 0:00:36]} 8. b3 {[%emt 0:02:16]} c3 {[%emt 0:08:26] Black has an edge.} 9. Nb1 {[%emt 0:00:24]} Bb7 {[%emt 0:00:06]} 10. a3 {[%emt 0:01:59]} Be4 {[%emt 0:08:39]} 11. Ne1 {[%emt 0:07:59] Prevents c2.} (11. axb4 $2 c2 12. Qe1 cxb1=B $17) (11. Qe1 $11 c2 12. Nc3 Bxc3 13. Qxc3) 11... Bxg2 $15 {[%emt 0:00:12] [#] 0x0.00249b13221bdp-1022s more active pieces.} 12. Kxg2 $146 {[%emt 0:00:45] [#]} ({Predecessor:} 12. Nxg2 Ba5 13. Qd3 Nc6 14. e3 e5 15. Qxb5 Qd7 16. dxe5 Rab8 17. Qe2 Nxe5 18. b4 {½-½ (44) Gijswijt,B (2341)-Arnaudov,P (2439) Haarlem 2011}) 12... c5 {[%emt 0:02:31]} 13. axb4 $11 {[%emt 0:19:13]} cxb4 {[%emt 0:00:05]} 14. Nc2 {[%emt 0:00:08]} a5 {[%emt 0:15:48]} 15. Qd3 {[%emt 0:06:18]} ({Wrong is} 15. Nxb4 $2 {[#]} axb4 $1 16. Rxa8 Qd5+ 17. f3 Qxa8 $19) 15... Nc6 {[%emt 0:05:22]} 16. Qxb5 {[%emt 0:04:13]} (16. e4 $11) 16... Nxd4 $17 {[%emt 0:00:33]} 17. Nxd4 {[%emt 0:04:11]} Qxd4 {[%emt 0:00:05]} 18. Bf4 {[%emt 0:04:43]} Nd5 {[%emt 0:05:07]} 19. e3 {[%emt 0:03:44] Loses the game.} (19. Qc4 $17 Qxc4 20. bxc4 Nxf4+ 21. gxf4) 19... Nxf4+ {[%emt 0:04:07]} 20. gxf4 {[%emt 0:00:09]} Qe4+ {[%emt 0:02:55]} 21. Kg1 {[%emt 0:00:12]} Qc2 {[%emt 0:05:35][%mdl 1024] Inhibits Rc1. Black has strong compensation.} 22. Qa4 {[%emt 0:01:59]} (22. Nxc3 {was worth a try.} bxc3 23. Rfc1 Qg6+ 24. Kf1) 22... Qg6+ {[%emt 0:02:08]} 23. Kh1 {[%emt 0:00:05]} Qd3 {[%emt 0:00:24][%cal Rd3f1]} 24. Rc1 {[%emt 0:01:04]} (24. Nxc3 {is a better defense.} bxc3 25. Qc4 Qxc4 26. bxc4) 24... c2 $19 {[%emt 0:00:21]} 25. Na3 $2 {[%emt 0:00:48]} (25. Nc3 bxc3 26. Qc4) 25... Qe4+ {[%emt 0:01:36]} ({Not} 25... bxa3 $2 26. Qc4 Qd7 27. Qxc2 $19) 26. Kg1 {[%emt 0:00:05]} Qg6+ {[%emt 0:00:02]} 27. Kh1 {[%emt 0:00:44]} bxa3 {[%emt 0:00:02]} 28. Ra2 {[%emt 0:00:50]} Rac8 {[%emt 0:00:49] aiming for ...Rfd8.} 29. Qxa5 {[%emt 0:00:33]} Qd3 {[%emt 0:01:40] Threatens to win with ...Qd1+.} 30. Qxa3 {[%emt 0:00:00]} Qd1+ {[%emt 0:00:00] Black mates.} 31. Kg2 {[%emt 0:00:36]} Qg4+ {[%emt 0:03:12]} 32. Kf1 {[%emt 0:00:56]} Rfd8 {[%emt 0:01:27] Weighted Error Value: White=0.95/Black=0.23 (precise)} 0-1

[Event "2nd Bassano Easter 2022"]
[Site "Bassano del Grappa"]
[Date "2022.04.18"]
[Round "8.1"]
[White "Bernadskiy, Vitaliy"]
[Black "Heberla, Bartlomiej"]
[Result "1-0"]
[ECO "D36"]
[WhiteElo "2601"]
[BlackElo "2570"]
[Annotator "TA"]
[PlyCount "124"]
[EventDate "2022.04.14"]
[EventType "swiss"]
[EventCountry "ITA"]
[SourceTitle "playchess.com"]
[Source "ChessBase"]
[SourceQuality "1"]
[TimeControl "30/3600+30:1800+30"]

{[%evp 21,124,18,14,16,23,34,23,23,23,26,50,47,48,43,59,54,42,33,41,50,47,0,65,62,74,74,96,95,93,64,123,107,104,64,66,70,64,65,93,101,104,83,132,132,158,135,126,130,131,112,112,53,53,53,53,53,52,52,52,22,30,8,16,8,8,8,71,72,72,72,72,72,139,139,143,6,8,0,0,0,0,0,0,0,0,0,0,0,0,0,0,0,0,0,0,0,0,0,0,0,29986,29987,29987,29988,29993]} 1. d4 {[%emt 0:00:02]} d5 {[%emt 0:00:26]} 2. c4 {[%emt 0:00:06]} e6 {[%emt 0:00:07]} 3. Nc3 {[%emt 0:00:03]} Nf6 {[%emt 0:00:08]} 4. cxd5 {[%emt 0:00:23]} exd5 {[%emt 0:00:03]} 5. Bg5 {[%emt 0:00:07]} c6 {[%emt 0:00:03]} 6. e3 {[%emt 0:00:24]} h6 {[%emt 0:00:05]} 7. Bh4 {[%emt 0:03:32]} Be7 {[%emt 0:00:08]} 8. Qc2 {[%emt 0:01:07]} O-O {[%emt 0:00:06]} 9. Bd3 {[%emt 0:01:45]} Re8 {[%emt 0:00:03]} 10. Nge2 {[%emt 0:03:51]} Nbd7 {[%emt 0:00:38]} 11. O-O {[%emt 0:03:32]} Nh5 {[%emt 0:00:02]} 12. Bxe7 {[%emt 0:01:04] D36: Queen's Gambit Declined: Exchange Variation: Main line (5 Bg5 c6 6 Qc2).} Qxe7 {[%emt 0:00:05]} 13. Rab1 {[%emt 0:01:15]} a5 {[%emt 0:02:50]} 14. Na4 {[%emt 0:00:35] White has an edge.} Nf8 {[%emt 0:12:12]} 15. Nb6 {[%emt 0:04:46] [#]} Rb8 $146 {[%emt 0:00:52]} ({Predecessor:} 15... Ra7 16. Nc3 Be6 17. a3 Qg5 18. Nca4 f5 19. f4 Qf6 20. Nc5 g6 21. Rf3 Qd8 {1-0 (34) Soln,P (2419)-Medved,A Ljubljana 2002}) 16. Qc3 {[%emt 0:03:35]} (16. Qa4 {seems wilder.} Qg5 17. Qxa5 Bh3 18. Ng3) 16... Qd8 {[%emt 0:00:38]} 17. Nxc8 {[%emt 0:00:15]} (17. Qxa5 $2 Nd7 18. Nc4 (18. g4 $2 Nhf6 $19) 18... dxc4 19. Qxd8 Rxd8 $19) 17... Rxc8 {[%emt 0:00:07]} 18. b4 {[%emt 0:00:22]} axb4 $1 {[%emt 0:02:31]} 19. Qxb4 {[%emt 0:00:30]} Rc7 {[%emt 0:02:28]} 20. a4 {[%emt 0:00:14]} Qg5 {[%emt 0:01:41][%cal Oe8e3]} 21. a5 {[%emt 0:05:32]} (21. Rb3 $14) 21... Nf6 {[%emt 0:20:13]} (21... Rxe3 $1 $11 22. fxe3 Qxe3+ 23. Kh1 Qxd3) 22. Nf4 {[%emt 0:04:23]} Ne6 {[%emt 0:14:08]} 23. Nxe6 {[%emt 0:01:41] &Bianco is more active.} fxe6 {[%emt 0:00:37]} 24. a6 {[%emt 0:03:29]} bxa6 {[%emt 0:01:04]} 25. Qb6 {[%emt 0:00:28]} Ree7 {[%emt 0:02:01]} ({Black should play} 25... Rec8 $14) 26. Rbc1 {[%emt 0:06:39]} e5 {[%emt 0:03:18]} 27. Rxc6 {[%emt 0:00:12]} Rxc6 {[%emt 0:00:24]} 28. Qxc6 {[%emt 0:00:06]} exd4 {[%emt 0:03:09]} 29. exd4 {[%emt 0:00:17]} Kf7 {[%emt 0:03:05]} 30. Qxa6 {[%emt 0:00:00]} Qd2 {[%emt 0:00:00]} 31. h4 {[%emt 0:08:24][%cal Oh4h5]} h5 {[%emt 0:16:50]} (31... g5 $142) 32. Qa3 $1 $16 {[%emt 0:04:27][%cal Od3g6]} Re1 {[%emt 0:09:09]} 33. Qa7+ {[%emt 0:02:25]} Kg8 {[%emt 0:01:44]} 34. Qb8+ {[%emt 0:00:40]} Kf7 {[%emt 0:00:46]} 35. Qc7+ {[%emt 0:01:06]} Kg8 {[%emt 0:04:12]} 36. Qc2 {[%emt 0:03:18]} (36. Rxe1 $16 {Intending Qd8+ and mate.} Qxe1+ 37. Bf1) 36... Qxc2 $14 {[%emt 0:01:31]} 37. Bxc2 {[%emt 0:00:03][%mdl 4096] Endgame KRB-KRN} Re2 {[%emt 0:00:07]} 38. Bg6 {[%emt 0:00:04]} Rd2 $1 {[%emt 0:00:53]} 39. Rb1 {[%emt 0:00:39]} Kf8 {[%emt 0:00:02]} 40. Rb4 {[%emt 0:00:25]} Ng4 $1 {[%emt 0:00:42][%cal Rd2d1]} 41. g3 {[%emt 0:00:13] Strongly threatening Rb8+.} Nxf2 {[%emt 0:00:17]} 42. Rb8+ {[%emt 0:04:33]} Ke7 {[%emt 0:00:02]} 43. Rb7+ {[%emt 0:00:52]} Kd6 {[%emt 0:00:51]} (43... Kf6 $11 44. Bxh5 Ne4) 44. Rxg7 $16 {[%emt 0:01:41]} ({Don't play} 44. Bxh5 g5 $11) 44... Ne4 {[%emt 0:00:59]} 45. Bxh5 {[%emt 0:07:21] aiming for Bf3.} Rxd4 {[%emt 0:00:01]} 46. Bf3 $1 {[%emt 0:00:20]} Rd3 {[%emt 0:01:13]} (46... Nxg3 $142 47. Rxg3 Rxh4) 47. Bxe4 {[%emt 0:05:03]} dxe4 {[%emt 0:00:01] [#] KR-KR} 48. h5 {[%emt 0:01:28]} (48. Rg8 $1 $16 {[%cal Rg8d8] Rd8+ would kill now.} Ke5 49. Kg2) 48... e3 {[%emt 0:00:02] ( -> ...Rd1+)} 49. Kf1 {[%emt 0:05:00]} Rd2 {[%emt 0:00:04]} 50. g4 {[%emt 0:01:01][%cal Bg3g4,Bg4g5,Bg5g6,Bg6g7][%mdl 32]} Rh2 {[%emt 0:01:03]} 51. Rg5 {[%emt 0:01:15]} Ke6 {[%emt 0:00:30]} 52. Ke1 {[%emt 0:00:33]} Rg2 {[%emt 0:01:08]} 53. h6 {[%emt 0:01:34] Threatening mate with h7.} Rh2 $1 {[%emt 0:00:04]} 54. Rg6+ {[%emt 0:00:57]} Ke5 {[%emt 0:00:31]} 55. g5 {[%emt 0:00:17] Threatens to win with Rg8.} Kf4 {[%emt 0:01:06]} (55... Kf5 $2 56. Rg7 $18) 56. Rg8 {[%emt 0:01:00]} Rh1+ {[%emt 0:00:39]} 57. Ke2 {[%emt 0:00:03]} Rh2+ {[%emt 0:00:01]} 58. Kd3 {[%emt 0:00:53] White wants to mate with g6.} Rd2+ {[%emt 0:00:02]} 59. Kc3 {[%emt 0:00:04]} Rd7 {[%emt 0:01:45]} 60. g6 {[%emt 0:00:15]} ({Wrong is} 60. Rg7 $2 {[#]} e2 $1 {[%mdl 512]} 61. Rxd7 e1=Q+ 62. Kc2 Qe4+ 63. Kd2 Qe3+ 64. Kd1 Qb3+ 65. Kd2 Qe3+ 66. Kd1 Qe6 $19) 60... Re7 {[%emt 0:00:31][%mdl 8192]} (60... e2 $11 61. Re8 Rd8 62. Rxe2 (62. Rxd8 $2 {too greedy.} e1=Q+ 63. Kc4 Qe2+ 64. Kc3 Qe5+ 65. Kb3 Qe6+ 66. Kc2 Qxg6+ 67. Rd3 Ke4 $19) 62... Kg5) 61. Rf8+ {[%emt 0:00:23]} Ke4 {[%emt 0:00:27]} 62. g7 {[%emt 0:00:14]} Kd5 {[%emt 0:01:05] Weighted Error Value: White=0.10 (very precise) /Black=0.24 (precise)} 1-0

[Event "2nd Bassano Easter 2022"]
[Site "Bassano del Grappa"]
[Date "2022.04.17"]
[Round "8.2"]
[White "Fier, Alexandr"]
[Black "Basso, Pier Luigi"]
[Result "1/2-1/2"]
[ECO "C42"]
[WhiteElo "2583"]
[BlackElo "2600"]
[Annotator "TA"]
[PlyCount "40"]
[EventDate "2022.04.14"]
[EventType "swiss"]
[EventCountry "ITA"]
[SourceTitle "playchess.com"]
[Source "ChessBase"]
[SourceQuality "1"]
[TimeControl "30/3600+30:1800+30"]

{[%evp 10,40,4,9,16,15,0,7,4,-7,9,0,0,0,8,0,0,0,0,0,0,0,0,0,0,0,0,0,12,18,8,0,0]} 1. e4 {[%emt 0:00:07]} e5 {[%emt 0:00:09]} 2. Nf3 {[%emt 0:00:04]} Nf6 {[%emt 0:00:09]} 3. Nxe5 {[%emt 0:00:05]} d6 {[%emt 0:00:17]} 4. Nf3 {[%emt 0:00:04]} Nxe4 {[%emt 0:00:05]} 5. d3 {[%emt 0:00:04]} Nf6 {[%emt 0:00:08]} 6. d4 {[%emt 0:00:05] The position is equal.} g6 {[%emt 0:00:25] C42: Petroff Defence: 3 Nxe5 and unusual White 3rd moves.} 7. Bd3 {[%emt 0:00:10]} Bg7 {[%emt 0:00:08]} 8. O-O {[%emt 0:00:07]} O-O {[%emt 0:00:05]} 9. h3 {[%emt 0:00:04]} Nc6 {[%emt 0:00:54][%cal Bb8c6,Bc6e7,Be7f5][%mdl 32]} 10. c3 {[%emt 0:00:35]} Re8 {[%emt 0:02:16]} 11. Bg5 {[%emt 0:00:45]} h6 {[%emt 0:01:04] [#]} 12. Bh4 $146 {[%emt 0:00:09]} ({Predecessor:} 12. Bxf6 Qxf6 13. Nbd2 Bf5 14. Nc4 Bxd3 15. Qxd3 Qe7 16. Rfe1 Qd7 17. Rxe8+ Rxe8 18. Re1 Rxe1+ 19. Nxe1 d5 20. Ne3 Ne7 21. Nf3 c6 22. Ng4 Qe6 {½-½ (22) Mohammad,J (2073)-Laylo,D (2434) Tornelo INT 2021}) 12... Ne7 {[%emt 0:03:16]} 13. Nbd2 {[%emt 0:01:19]} Bf5 {[%emt 0:04:16]} 14. Bxf5 {[%emt 0:00:11]} Nxf5 {[%emt 0:00:08]} 15. Bxf6 {[%emt 0:00:03]} Bxf6 {[%emt 0:00:28]} 16. Qb3 {[%emt 0:00:47]} b6 {[%emt 0:02:58]} 17. Rfe1 {[%emt 0:00:47]} Rxe1+ {[%emt 0:02:38]} 18. Rxe1 {[%emt 0:00:04]} d5 {[%emt 0:01:32]} 19. Ne5 {[%emt 0:00:40]} Bxe5 {[%emt 0:01:24]} 20. Rxe5 {[%emt 0:00:06]} c6 {[%emt 0:00:36] Not much happened in this game.  Weighted Error Value: White=0.02 (flawless) /Black=0.03 (flawless)} 1/2-1/2